bitfinex/quotes_SOLUSD_20241209
["timestamp","ask_amount","ask_price","bid_price","bid_amount"]
[1733717213100,23.776884,232.78,232.67,20.0]
[1733717213674,23.776884,232.78,232.64,20.0]
[1733717213883,23.776884,232.78,232.65,20.0]
[1733717214776,23.776884,232.78,232.63,20.0]
[1733717215171,0.77722304,232.77,232.63,20.0]
[1733717215491,23.776884,232.76,232.63,20.0]
[1733717216199,0.5662,232.73,232.63,20.0]
[1733717217706,23.776884,232.72,232.63,20.0]
[1733717218802,0.5662,232.73,232.63,20.0]
[1733717218970,0.5662,232.73,232.63,33.31530712]
[1733717219170,0.5662,232.73,232.64,13.31530712]
[1733717219404,23.776884,232.77,232.64,13.31530712]
[1733717219611,23.776884,232.77,232.65,13.31530712]
[1733717219913,23.776884,232.77,232.65,20.0]
[1733717220117,23.776884,232.77,232.64,13.31530712]
[1733717220689,23.776884,232.77,232.64,20.0]
[1733717220910,23.776884,232.77,232.66,20.0]
[1733717221692,0.5662,232.78,232.66,20.0]
[1733717221896,0.5662,232.78,232.66,33.31530712]
[1733717222082,0.5662,232.78,232.68,20.0]
[1733717222731,0.5662,232.78,232.66,20.0]
[1733717223220,23.776884,232.77,232.66,20.0]
[1733717223989,23.776884,232.75,232.64,20.0]
[1733717224407,23.776884,232.77,232.64,20.0]
[1733717224625,23.776884,232.75,232.64,20.0]
[1733717224823,23.776884,232.73,232.61,13.52352218]
[1733717225143,23.776884,232.73,232.6,1.75243493]
[1733717225437,23.776884,232.73,232.59,10.7482]
[1733717225937,23.776884,232.73,232.59,12.4627383]
[1733717227114,23.776884,232.77,232.62,20.0]
[1733717227330,23.776884,232.77,232.64,20.0]
[1733717228599,0.7772471,232.76,232.61,20.0]
[1733717228797,23.776884,232.75,232.59,1.7145383]
[1733717229022,23.776884,232.75,232.57,24.27272218]
[1733717229023,0.5662,232.71,232.56,15.07052218]
[1733717229331,0.5662,232.71,232.56,28.3858293]
[1733717229731,0.5662,232.71,232.58,13.31530712]
[1733717229906,0.5662,232.71,232.57,10.7494]
[1733717232147,24.55432026,232.7,232.58,20.0]
[1733717232819,24.55432026,232.7,232.53,13.52352218]
[1733717232820,24.55432026,232.7,232.56,20.0]
[1733717235524,24.55432026,232.7,232.55,20.0]
[1733717235719,24.55432026,232.7,232.51,1.5587]
[1733717235720,0.12549,232.69,232.51,1.5587]
[1733717236644,0.12549,232.69,232.51,3.29869953]
[1733717237049,0.12549,232.69,232.52,20.0]
[1733717237368,23.776884,232.65,232.48,24.27702218]
[1733717237520,0.5662,232.66,232.48,24.27702218]
[1733717237521,23.776884,232.63,232.48,10.7535]
[1733717237882,23.776884,232.61,232.48,1.69574321]
[1733717238248,23.776884,232.61,232.46,26.8388293]
[1733717238742,23.776884,232.61,232.49,20.0]
[1733717239066,23.776884,232.65,232.5,13.31530712]
[1733717239232,23.776884,232.65,232.51,13.31530712]
[1733717239975,23.776884,232.65,232.53,20.0]
[1733717240138,0.77768309,232.64,232.53,20.0]
[1733717240338,0.77768309,232.64,232.51,20.0]
[1733717240638,23.776884,232.63,232.51,20.0]
[1733717241037,23.776884,232.65,232.5,20.0]
[1733717241363,23.776884,232.63,232.5,20.0]
[1733717241707,23.776884,232.65,232.5,20.0]
[1733717241872,1.3439336,232.66,232.5,20.0]
[1733717241873,23.776884,232.63,232.5,20.0]
[1733717242040,23.776884,232.63,232.51,20.0]
[1733717242644,23.776884,232.61,232.5,20.0]
[1733717243051,7.07186271,232.6,232.45,16.76784119]
[1733717243251,7.07186271,232.6,232.47,20.0]
[1733717243252,0.5662,232.59,232.47,20.0]
[1733717243776,0.5662,232.59,232.43,44.0121293]
[1733717243777,0.5662,232.59,232.46,20.0]
[1733717244139,0.5662,232.59,232.47,20.0]
[1733717244351,0.5662,232.59,232.5,13.31530712]
[1733717244671,0.5662,232.59,232.51,33.31530712]
[1733717245273,0.5662,232.59,232.52,20.0]
[1733717247889,0.5662,232.59,232.51,20.0]
[1733717248560,0.5662,232.59,232.49,20.0]
[1733717248760,0.5662,232.59,232.47,0.12549]
[1733717248985,23.776884,232.58,232.47,0.12549]
[1733717249391,23.776884,232.58,232.45,1.70137139]
[1733717249573,23.776884,232.58,232.44,10.7553]
[1733717250068,23.776884,232.58,232.47,20.0]
[1733717251563,23.776884,232.58,232.48,20.0]
[1733717252092,23.776884,232.58,232.47,20.0]
[1733717253568,23.776884,232.58,232.48,20.0]
[1733717253775,23.776884,232.58,232.47,20.0]
[1733717255208,23.776884,232.58,232.48,20.0]
[1733717256379,0.5662,232.59,232.48,20.0]
[1733717256575,0.5662,232.59,232.5,20.0]
[1733717257183,0.5662,232.59,232.47,20.12549]
[1733717257379,0.5662,232.59,232.49,20.0]
[1733717257579,0.5662,232.59,232.5,20.0]
[1733717257774,7.2179,232.68,232.54,20.0]
[1733717257980,0.77758838,232.67,232.55,20.0]
[1733717258586,0.77758838,232.67,232.54,20.0]
[1733717259376,23.776884,232.66,232.54,20.0]
[1733717259700,23.776884,232.67,232.54,20.0]
[1733717260867,23.776884,232.67,232.53,20.0]
[1733717261073,23.776884,232.67,232.5,10.7526]
[1733717261074,23.776884,232.67,232.55,20.0]
[1733717263395,23.776884,232.67,232.61,0.2112394]
[1733717264589,23.776884,232.65,232.61,0.2112394]
[1733717264785,23.776884,232.66,232.61,0.2112394]
[1733717264993,23.776884,232.64,232.61,0.2112394]
[1733717265770,23.776884,232.66,232.61,0.2112394]
[1733717266291,23.776884,232.64,232.61,0.2112394]
[1733717266766,23.776884,232.66,232.61,0.2112394]
[1733717266971,23.776884,232.64,232.61,0.2112394]
[1733717267397,23.776884,232.66,232.61,0.2112394]
[1733717267704,23.776884,232.64,232.61,0.2112394]
[1733717268801,23.776884,232.66,232.61,0.2112394]
[1733717268988,23.776884,232.64,232.61,0.2112394]
[1733717270309,7.2179,232.68,232.61,0.2112394]
[1733717270310,23.776884,232.66,232.61,0.2112394]
[1733717270597,23.776884,232.64,232.61,0.2112394]
[1733717270972,23.776884,232.66,232.61,0.2112394]
[1733717271180,23.776884,232.64,232.61,0.2112394]
[1733717271734,23.776884,232.66,232.61,0.2112394]
[1733717271892,23.776884,232.64,232.61,0.2112394]
[1733717272394,23.776884,232.66,232.61,0.2112394]
[1733717272589,23.776884,232.64,232.61,0.2112394]
[1733717273780,23.776884,232.66,232.61,0.2112394]
[1733717273975,23.776884,232.64,232.61,0.2112394]
[1733717274211,23.776884,232.62,232.61,0.2112394]
[1733717274582,23.776884,232.62,232.5,20.0]
[1733717274777,23.776884,232.6,232.5,20.0]
[1733717277097,0.77779228,232.67,232.5,20.0]
[1733717277329,0.77779228,232.67,232.52,20.0]
[1733717277523,0.77779228,232.67,232.54,20.0]
[1733717278613,23.776884,232.66,232.54,20.0]
[1733717278835,23.776884,232.64,232.54,20.0]
[1733717279414,23.776884,232.66,232.54,20.0]
[1733717279647,23.776884,232.64,232.54,20.0]
[1733717280026,23.776884,232.66,232.54,20.0]
[1733717280219,23.776884,232.64,232.54,20.0]
[1733717280901,23.776884,232.66,232.54,20.0]
[1733717281102,23.776884,232.64,232.54,20.0]
[1733717281315,23.776884,232.62,232.51,13.52352218]
[1733717281512,23.776884,232.6,232.5,13.52352218]
[1733717281911,23.776884,232.6,232.49,16.7823487]
[1733717283539,23.776884,232.6,232.51,13.52352218]
[1733717283718,23.776884,232.6,232.49,3.25882652]
[1733717283719,23.776884,232.6,232.5,13.52352218]
[1733717285536,23.776884,232.6,232.51,13.52352218]
[1733717287408,23.776884,232.58,232.5,13.52352218]
[1733717287600,0.77782815,232.59,232.5,13.52352218]
[1733717287601,23.776884,232.56,232.5,13.52352218]
[1733717288036,23.776884,232.58,232.5,13.52352218]
[1733717288235,0.77793186,232.57,232.5,13.52352218]
[1733717288434,23.776884,232.56,232.5,13.52352218]
[1733717288613,23.776884,232.58,232.5,13.52352218]
[1733717289427,23.776884,232.56,232.48,13.52352218]
[1733717289614,23.776884,232.56,232.47,13.52352218]
[1733717289809,0.77798322,232.55,232.47,13.52352218]
[1733717290036,23.776884,232.57,232.47,13.52352218]
[1733717290231,23.776884,232.55,232.47,13.52352218]
[1733717290438,23.776884,232.55,232.46,13.52352218]
[1733717290646,23.776884,232.53,232.47,13.52352218]
[1733717290843,23.776884,232.53,232.46,13.52352218]
[1733717291148,0.77807305,232.58,232.44,27.04704436]
[1733717291149,23.776884,232.57,232.45,13.52352218]
[1733717291512,23.776884,232.55,232.45,13.52352218]
[1733717291847,23.776884,232.55,232.46,13.52352218]
[1733717292030,23.776884,232.57,232.46,13.52352218]
[1733717292549,23.776884,232.55,232.46,13.52352218]
[1733717293343,23.776884,232.57,232.46,13.52352218]
[1733717293529,23.776884,232.55,232.46,13.52352218]
[1733717294054,23.776884,232.57,232.46,13.52352218]
[1733717294263,23.776884,232.55,232.46,13.52352218]
[1733717294823,23.776884,232.57,232.46,13.52352218]
[1733717295022,23.776884,232.55,232.46,13.52352218]
[1733717295652,23.776884,232.57,232.46,13.52352218]
[1733717295954,7.081,232.59,232.46,13.52352218]
[1733717296129,23.776884,232.58,232.48,13.52352218]
[1733717296752,23.776884,232.58,232.47,13.52352218]
[1733717296924,23.776884,232.58,232.48,13.52352218]
[1733717297832,0.77787316,232.63,232.51,20.0]
[1733717298063,23.776884,232.62,232.52,20.0]
[1733717298365,0.77778137,232.63,232.52,20.0]
[1733717299529,6.4393,232.64,232.52,20.0]
[1733717299860,0.12549,232.64,232.53,20.0]
[1733717300059,0.90320997,232.64,232.53,20.0]
[1733717301057,23.776884,232.63,232.53,20.0]
[1733717301262,23.776884,232.61,232.53,20.0]
[1733717301643,23.776884,232.63,232.53,20.0]
[1733717301837,23.776884,232.61,232.53,20.0]
[1733717302344,23.776884,232.63,232.53,20.0]
[1733717302742,23.776884,232.61,232.53,20.0]
[1733717304058,0.12549,232.64,232.53,20.0]
[1733717304059,23.776884,232.62,232.53,20.0]
[1733717304232,24.55466965,232.62,232.5,13.52352218]
[1733717305162,24.55466965,232.62,232.49,13.52352218]
[1733717305363,24.55466965,232.62,232.51,20.0]
[1733717305660,24.55466965,232.62,232.52,20.0]
[1733717310542,23.776884,232.62,232.52,20.0]
[1733717310874,23.776884,232.63,232.52,20.0]
[1733717311170,23.776884,232.65,232.55,21.6268]
[1733717311377,1.34379644,232.74,232.57,20.0]
[1733717312337,20.0,232.72,232.57,20.0]
[1733717312538,23.902374,232.7,232.57,20.0]
[1733717312768,23.902374,232.68,232.57,20.0]
[1733717312960,0.77764197,232.67,232.57,20.0]
[1733717313166,23.776884,232.66,232.57,20.0]
[1733717314647,0.77765134,232.65,232.57,20.0]
[1733717314863,23.776884,232.64,232.55,1.6268]
[1733717315065,0.77772675,232.63,232.55,1.6268]
[1733717315380,23.776884,232.62,232.55,1.6268]
[1733717315743,23.776884,232.6,232.55,1.6268]
[1733717317345,0.12549,232.68,232.55,1.6268]
[1733717317548,23.776884,232.66,232.55,1.6268]
[1733717317767,23.776884,232.66,232.57,20.0]
[1733717318688,1.34382136,232.74,232.58,20.0]
[1733717318851,1.34382136,232.74,232.59,20.0]
[1733717319048,1.34382136,232.74,232.56,13.52352218]
[1733717319381,1.34382136,232.74,232.57,13.52352218]
[1733717319751,1.34382136,232.74,232.56,13.52352218]
[1733717319954,23.902374,232.69,232.57,13.52352218]
[1733717320180,0.77763677,232.68,232.57,13.52352218]
[1733717320347,0.77763677,232.68,232.56,13.52352218]
[1733717321186,0.77761557,232.67,232.57,13.52352218]
[1733717321711,0.77761557,232.67,232.55,28.67384436]
[1733717321712,23.776884,232.68,232.56,13.52352218]
[1733717321891,0.77761678,232.67,232.56,13.52352218]
[1733717322274,0.77761678,232.67,232.57,13.52352218]
[1733717322475,0.77761678,232.67,232.56,13.52352218]
[1733717323904,24.55450184,232.68,232.56,13.52352218]
[1733717324078,0.77761784,232.68,232.56,13.52352218]
[1733717324413,0.77761784,232.68,232.55,1.6268]
[1733717324414,23.776884,232.7,232.59,20.0]
[1733717324710,0.77751725,232.69,232.59,20.0]
[1733717327612,23.776884,232.68,232.59,20.0]
[1733717327793,0.77763145,232.67,232.56,13.52352218]
[1733717329511,0.12549,232.69,232.55,1.6268]
[1733717329810,23.776884,232.68,232.57,20.0]
[1733717330375,0.77756153,232.69,232.57,20.0]
[1733717330581,20.0,232.72,232.59,20.0]
[1733717330582,23.776884,232.7,232.59,20.0]
[1733717330888,0.77751883,232.69,232.59,20.0]
[1733717331691,23.776884,232.68,232.59,20.0]
[1733717331882,0.7776122,232.67,232.58,20.0]
[1733717332082,23.776884,232.68,232.58,20.0]
[1733717332283,0.77759155,232.67,232.58,20.0]
[1733717332513,23.776884,232.68,232.59,20.0]
[1733717332690,23.776884,232.7,232.59,20.0]
[1733717332890,0.77757708,232.69,232.59,20.0]
[1733717333098,0.77757708,232.69,232.58,20.0]
[1733717334606,0.77757708,232.69,232.59,20.0]
[1733717335508,0.77757708,232.69,232.58,20.0]
[1733717336399,0.77743277,232.74,232.62,20.0]
[1733717336714,7.63557419,232.8,232.6,28.5269265]
[1733717337121,7.63557419,232.8,232.66,20.0]
[1733717338419,0.12549,232.78,232.66,20.0]
[1733717338600,23.776884,232.77,232.66,20.0]
[1733717338797,0.77731131,232.76,232.66,20.0]
[1733717339001,23.776884,232.77,232.66,20.0]
[1733717339209,0.77732136,232.76,232.66,20.0]
[1733717339534,23.776884,232.77,232.66,20.0]
[1733717339724,0.7773215,232.76,232.66,20.0]
[1733717340332,23.776884,232.75,232.63,6.4559]
[1733717340629,23.776884,232.73,232.62,1.5505]
[1733717340804,0.77745822,232.72,232.62,1.5505]
[1733717342638,0.12549,232.76,232.62,1.5505]
[1733717342801,23.776884,232.75,232.62,21.5505]
[1733717342998,0.77737136,232.74,232.62,21.5505]
[1733717345704,23.776884,232.73,232.62,1.5505]
[1733717345898,0.77743514,232.72,232.62,1.5505]
[1733717346733,23.776884,232.75,232.62,1.5505]
[1733717346938,0.77735708,232.74,232.62,1.5505]
[1733717347109,0.77735708,232.74,232.63,20.0]
[1733717347310,0.77736516,232.75,232.62,1.5505]
[1733717347511,23.902374,232.78,232.64,20.0]
[1733717347810,23.776884,232.76,232.64,20.0]
[1733717348010,0.77731265,232.75,232.64,20.0]
[1733717348209,0.77731265,232.75,232.63,20.0]
[1733717348621,0.77731265,232.75,232.64,20.0]
[1733717348919,0.77731265,232.75,232.63,20.0]
[1733717349733,0.77731265,232.75,232.64,20.0]
[1733717350305,6.8582,232.8,232.66,20.0]
[1733717350306,23.776884,232.79,232.66,20.0]
[1733717350642,24.55408672,232.79,232.67,20.0]
[1733717352018,24.55408672,232.79,232.65,20.0]
[1733717352221,24.55408672,232.79,232.66,20.0]
[1733717352416,0.12549,232.78,232.65,20.0]
[1733717352615,0.77733329,232.77,232.65,20.0]
[1733717353412,0.77733329,232.77,232.62,12.2974]
[1733717353413,23.776884,232.76,232.64,20.0]
[1733717353615,23.776884,232.76,232.63,20.0]
[1733717353616,0.77737334,232.75,232.63,20.0]
[1733717354019,0.12549,232.73,232.62,1.5505]
[1733717354239,23.776884,232.72,232.61,20.0]
[1733717354413,0.77750053,232.71,232.58,6.6336]
[1733717354927,23.776884,232.7,232.58,6.6336]
[1733717355135,0.77756348,232.69,232.58,6.6336]
[1733717356517,0.77756348,232.69,232.59,20.0]
[1733717361528,0.77754216,232.69,232.59,20.0]
[1733717362459,0.77754216,232.69,232.6,20.0]
[1733717362659,0.5662,232.71,232.59,20.0]
[1733717362660,0.5662,232.71,232.61,20.0]
[1733717363555,23.776884,232.72,232.62,20.0]
[1733717363758,0.90295371,232.73,232.62,20.0]
[1733717363759,0.77746371,232.73,232.62,20.0]
[1733717363942,0.77740629,232.76,232.65,20.0]
[1733717364836,0.5662,232.77,232.66,20.0]
[1733717367540,0.5662,232.77,232.67,20.0]
[1733717368281,0.5662,232.77,232.66,20.0]
[1733717368569,0.5662,232.77,232.67,20.0]
[1733717368772,0.5662,232.77,232.64,13.5217767]
[1733717368773,24.55414969,232.76,232.64,13.3962867]
[1733717368940,24.55414969,232.76,232.63,13.3962867]
[1733717369747,24.55414969,232.76,232.62,13.3962867]
[1733717369949,24.55414969,232.76,232.63,13.3962867]
[1733717370177,24.55414969,232.76,232.65,20.0]
[1733717371648,0.12549,232.75,232.65,20.0]
[1733717371848,0.12549,232.75,232.62,13.3962867]
[1733717372266,0.12549,232.75,232.61,13.3962867]
[1733717376778,6.0917,232.72,232.59,13.3962867]
[1733717376986,6.0917,232.72,232.57,28.32277341]
[1733717376987,24.67997159,232.71,232.58,13.3962867]
[1733717377686,24.67997159,232.71,232.57,14.9264867]
[1733717378286,0.5662,232.7,232.57,13.3962867]
[1733717378457,24.68003651,232.69,232.57,13.3962867]
[1733717378976,24.68003651,232.69,232.56,13.3962867]
[1733717381410,24.68003651,232.69,232.55,13.3962867]
[1733717382479,24.68003651,232.69,232.56,13.3962867]
[1733717382680,24.68003651,232.69,232.55,13.3962867]
[1733717385169,24.68003651,232.69,232.56,13.3962867]
[1733717386278,24.68003651,232.69,232.55,13.3962867]
[1733717390212,24.68003651,232.69,232.55,20.0]
[1733717390585,20.0,232.66,232.52,1.5163]
[1733717390790,23.776884,232.64,232.52,1.5163]
[1733717391111,0.77774792,232.63,232.52,1.5163]
[1733717392110,0.77774792,232.63,232.53,20.0]
[1733717392807,23.776884,232.62,232.5,13.3962867]
[1733717392982,0.77783602,232.61,232.5,13.3962867]
[1733717393511,0.77783602,232.61,232.49,13.3962867]
[1733717393672,0.77783602,232.61,232.5,13.3962867]
[1733717393879,0.77783602,232.61,232.49,13.3962867]
[1733717395477,0.77783602,232.61,232.51,20.0]
[1733717396624,0.77783602,232.61,232.5,20.0]
[1733717398994,6.5965,232.63,232.51,20.0]
[1733717399193,6.5965,232.63,232.53,20.0]
[1733717399838,6.1562,232.68,232.56,20.0]
[1733717400696,6.1562,232.68,232.57,20.0]
[1733717400898,6.1562,232.74,232.58,20.0]
[1733717401098,0.77745254,232.73,232.61,20.0]
[1733717402105,0.77745254,232.73,232.58,0.12549]
[1733717402303,23.776884,232.69,232.57,20.0]
[1733717402610,0.77757234,232.68,232.57,20.0]
[1733717404750,20.0,232.71,232.57,20.0]
[1733717405040,1.34369779,232.7,232.57,20.0]
[1733717405214,6.1562,232.74,232.59,8.7779065]
[1733717405416,6.1562,232.74,232.62,20.0]
[1733717405941,0.77737559,232.73,232.61,20.0]
[1733717406555,23.776884,232.72,232.61,20.0]
[1733717406847,0.77745583,232.71,232.61,20.0]
[1733717407638,0.77745583,232.71,232.59,20.0]
[1733717408217,0.77745583,232.71,232.57,0.12549]
[1733717408218,0.77745583,232.71,232.56,15.0138867]
[1733717408732,0.77745583,232.71,232.57,0.12549]
[1733717408947,23.776884,232.73,232.59,0.12549]
[1733717409633,0.5662,232.76,232.65,20.0]
[1733717410020,0.5662,232.76,232.64,20.0]
[1733717410220,0.5662,232.76,232.62,20.12549]
[1733717410641,0.5662,232.76,232.63,20.0]
[1733717411627,0.52999563,232.76,232.63,20.0]
[1733717411829,1.30730476,232.76,232.63,20.0]
[1733717412456,23.776884,232.75,232.63,20.0]
[1733717413420,0.52999563,232.76,232.63,20.0]
[1733717413752,0.52999563,232.76,232.65,20.0]
[1733717413926,0.52999563,232.76,232.66,20.0]
[1733717414550,0.52999563,232.76,232.66,0.12549]
[1733717414739,6.6116,232.79,232.69,20.0]
[1733717415456,6.6116,232.79,232.67,20.0]
[1733717416051,6.6116,232.79,232.68,20.0]
[1733717416749,6.6116,232.79,232.66,20.12549]
[1733717416960,0.77715107,232.78,232.67,20.0]
[1733717417151,0.77715107,232.78,232.62,13.34947565]
[1733717417152,23.776884,232.77,232.62,13.34947565]
[1733717417333,23.776884,232.75,232.6,41.76689283]
[1733717417529,23.776884,232.75,232.61,0.12549]
[1733717418169,0.77732829,232.74,232.61,0.12549]
[1733717418457,23.776884,232.73,232.59,14.99817565]
[1733717418650,0.77746198,232.72,232.59,14.99817565]
[1733717422660,23.776884,232.69,232.56,13.34947565]
[1733717422871,0.7775638,232.68,232.59,20.0]
[1733717423355,0.7775638,232.68,232.58,20.0]
[1733717423846,0.7775638,232.68,232.57,20.0]
[1733717424166,0.7775638,232.68,232.58,20.0]
[1733717424774,0.7775638,232.68,232.54,13.34947565]
[1733717424775,24.306884,232.67,232.54,13.34947565]
[1733717424949,23.776884,232.65,232.53,13.34947565]
[1733717425268,0.77772086,232.64,232.51,13.34947565]
[1733717425564,0.77772086,232.64,232.49,26.6989513]
[1733717425565,23.776884,232.63,232.5,13.34947565]
[1733717425743,23.776884,232.65,232.5,13.34947565]
[1733717425744,0.77780089,232.62,232.5,13.34947565]
[1733717425952,23.776884,232.63,232.5,13.34947565]
[1733717426133,0.77777219,232.62,232.5,13.34947565]
[1733717427244,30.236384,232.61,232.5,13.34947565]
[1733717427443,0.77786484,232.6,232.5,13.34947565]
[1733717427670,0.77786484,232.6,232.49,13.34947565]
[1733717427873,0.77786484,232.6,232.48,13.34947565]
[1733717428770,30.236384,232.61,232.48,13.34947565]
[1733717428973,6.4595,232.61,232.49,8.6524165]
[1733717429341,6.9895,232.67,232.52,0.12549]
[1733717429536,6.9895,232.67,232.54,0.12549]
[1733717429741,6.9895,232.67,232.54,8.6524165]
[1733717429941,6.9895,232.67,232.57,20.0]
[1733717432154,0.77761048,232.66,232.56,20.0]
[1733717432667,0.77761048,232.66,232.54,20.0]
[1733717432868,23.776884,232.65,232.54,20.0]
[1733717433173,0.77768808,232.64,232.54,20.0]
[1733717433390,0.77768808,232.64,232.52,0.12549]
[1733717433800,23.776884,232.65,232.52,0.12549]
[1733717434099,23.776884,232.65,232.52,13.47496565]
[1733717434263,23.776884,232.65,232.52,0.12549]
[1733717434464,23.776884,232.66,232.54,20.0]
[1733717434664,23.776884,232.66,232.55,20.0]
[1733717434859,6.9895,232.67,232.57,20.0]
[1733717435992,7.1037,232.77,232.58,20.0]
[1733717436302,0.77745612,232.76,232.6,20.0]
[1733717437003,0.77745612,232.76,232.58,20.0]
[1733717437171,23.902374,232.75,232.6,20.0]
[1733717437369,23.902374,232.73,232.56,13.34947565]
[1733717437578,23.902374,232.69,232.58,20.0]
[1733717437890,0.77757729,232.68,232.58,20.0]
[1733717438061,7.88127729,232.68,232.54,13.34947565]
[1733717438464,7.88127729,232.68,232.55,0.12549]
[1733717438692,0.53,232.68,232.57,0.12549]
[1733717439265,6.5737,232.73,232.58,0.12549]
[1733717439266,23.776884,232.72,232.58,0.12549]
[1733717439663,23.776884,232.72,232.6,20.0]
[1733717440266,23.776884,232.72,232.58,20.0]
[1733717440693,0.77744453,232.71,232.58,20.0]
[1733717441081,0.77744453,232.71,232.59,20.0]
[1733717442197,7.1037,232.73,232.6,0.12549]
[1733717442405,7.1037,232.73,232.6,20.12549]
[1733717443069,7.1037,232.73,232.61,20.0]
[1733717444699,7.1037,232.73,232.6,20.12549]
[1733717444861,7.1037,232.73,232.62,20.0]
[1733717445273,0.77734552,232.83,232.62,20.0]
[1733717445274,7.0153,232.82,232.64,20.0]
[1733717445470,0.77720327,232.81,232.64,20.0]
[1733717445690,0.77720327,232.81,232.66,20.0]
[1733717446367,0.77720327,232.81,232.65,20.0]
[1733717446569,0.12549,232.8,232.65,20.0]
[1733717446810,0.77720226,232.79,232.65,20.0]
[1733717447306,0.77720226,232.79,232.64,20.0]
[1733717447802,0.12549,232.76,232.64,20.0]
[1733717447997,6.3203,232.75,232.61,13.34947565]
[1733717448198,0.77738199,232.74,232.61,13.34947565]
[1733717449812,0.77738199,232.74,232.59,13.47496565]
[1733717450012,0.77738199,232.74,232.62,20.0]
[1733717450914,0.77738199,232.74,232.61,20.0]
[1733717451716,0.77738199,232.74,232.62,20.0]
[1733717455104,23.902374,232.73,232.61,20.0]
[1733717455302,0.12549,232.71,232.56,13.34947565]
[1733717455691,0.12549,232.71,232.59,20.0]
[1733717460403,0.53,232.7,232.59,20.0]
[1733717460716,1.30754175,232.7,232.59,20.0]
[1733717463830,1.30754175,232.7,232.56,13.34947565]
[1733717463831,1.30754175,232.7,232.58,20.0]
[1733717464033,23.902374,232.69,232.58,20.0]
[1733717464344,6.83543563,232.68,232.58,20.0]
[1733717464633,6.83543563,232.68,232.57,20.0]
[1733717464815,6.83543563,232.68,232.54,13.34947565]
[1733717465217,6.83543563,232.68,232.53,15.12022665]
[1733717465729,6.83543563,232.68,232.54,13.34947565]
[1733717467130,6.83543563,232.68,232.58,20.0]
[1733717467131,6.0578,232.68,232.58,20.0]
[1733717467732,0.53,232.7,232.59,20.0]
[1733717467940,0.53,232.7,232.61,20.0]
[1733717468732,0.53,232.7,232.59,20.0]
[1733717469838,0.53,232.7,232.6,20.0]
[1733717470846,0.53,232.7,232.59,20.0]
[1733717472138,20.0,232.68,232.56,13.34947565]
[1733717472310,0.7776156,232.67,232.54,13.34947565]
[1733717472645,0.7776156,232.67,232.53,13.34947565]
[1733717473018,6.1034,232.66,232.53,13.34947565]
[1733717473427,6.1034,232.66,232.54,13.34947565]
[1733717473654,6.1034,232.66,232.53,13.34947565]
[1733717473917,6.1034,232.66,232.54,13.34947565]
[1733717475056,6.1034,232.66,232.58,20.0]
[1733717475220,0.53,232.7,232.59,20.0]
[1733717476350,0.53,232.7,232.6,20.0]
[1733717477075,0.53,232.7,232.59,20.0]
[1733717477245,0.53,232.7,232.6,20.0]
[1733717477742,0.53,232.7,232.61,20.0]
[1733717478548,0.53,232.7,232.58,13.34947565]
[1733717478757,0.53,232.7,232.6,20.0]
[1733717479169,1.3074719,232.7,232.57,13.34947565]
[1733717479467,1.3074719,232.7,232.59,20.0]
[1733717480776,0.12549,232.69,232.59,20.0]
[1733717481072,23.902374,232.69,232.55,13.34947565]
[1733717481375,0.77763087,232.68,232.55,13.34947565]
[1733717484776,0.77763087,232.68,232.54,15.03867109]
[1733717485077,0.77763087,232.68,232.54,13.34947565]
[1733717485574,0.77763087,232.68,232.53,13.34947565]
[1733717486874,0.77763087,232.68,232.54,13.34947565]
[1733717487573,0.77763087,232.68,232.53,13.34947565]
[1733717488861,23.902374,232.67,232.53,13.34947565]